Cogmind - Beta 17.1 @@@ ROGUE MODE // 2026.09.21 @ 19:18:32 // AFD2020/Player2 Player: osman sinnoks Result: Destroyed by D-53 Grenadier with Mini Grenade Launcher Performance ------------- Evolutions (0) 0 Regions Visited (4) 800 Robots Destroyed (21) 105 Value Destroyed (278) 278 Prototype IDs (0) 0 Alien Tech Used (0) 0 Bonus (395) 395 TOTAL SCORE: 1578 Bonus ------- Follower Combat Kills 395 Cogmind --------- Core Integrity 0/250 Matter 300/300 Energy 100/100 System Corruption 0% Temperature Cool (0) Movement Core (350) Ox6 Location -9/Mines Parts ------- > --- POWER (1) -------- (None) > --- PROPULSION (2) --- (None) > --- UTILITY (2) ------ Large Storage Unit Seismic Detector > --- WEAPON (2) ------- (None) > --- INVENTORY (15) --- Improved Heat Sink High-capacity Matter Pod (200) Light Armor Plating Light Assault Rifle Light Assault Rifle Light Assault Rifle Light Cannon Grenade Launcher Grenade Launcher Grenade Launcher Makeshift Hammer Peak State ------------ > --- POWER ------------ Ion Engine > --- PROPULSION ------- Light Treads Light Treads > --- UTILITY ---------- Large Storage Unit Seismic Detector > --- WEAPON ----------- Assault Rifle Light Assault Rifle > --- INVENTORY -------- Large Matter Pod Light Assault Rifle Light Cannon Grenade Launcher Grenade Launcher Grenade Launcher Makeshift Sword [Rating: 8] Favorites ----------- Power Ion Engine Engine Ion Engine Propulsion Light Treads Treads Light Treads Utility Seismic Detector Device Seismic Detector Storage Large Storage Unit Weapon Assault Rifle Ballistic Gun Assault Rifle Launcher Grenade Launcher Build | -11 -10 -10 -10 -9 ------- Run | Yrd Mat Min Exi Min Slots Evolved . | . . . . . Power . | . . . . . Propulsion . | . . . . . Utility . | . . . . . Weapon . | . . . . . Parts Attached 9 | 7 1 . . 1 Power 1 | 1 . . . . Engine 1 | 1 . . . . Core . | . . . . . Reactor . | . . . . . Propulsion 2 | 2 . . . . Treads 2 | 2 . . . . Leg . | . . . . . Wheel . | . . . . . Hover . | . . . . . Flight . | . . . . . Utility 3 | 2 1 . . . Device 1 | 1 . . . . Storage 2 | 1 1 . . . Processor . | . . . . . Hackware . | . . . . . Protection . | . . . . . Artifact . | . . . . . Weapon 3 | 2 . . . 1 Energy Gun . | . . . . . Energy Cannon . | . . . . . Ballistic Gun 2 | 2 . . . . Ballistic Cannon . | . . . . . Launcher 1 | . . . . 1 Special Weapon . | . . . . . Impact Weapon . | . . . . . Slashing Weapon . | . . . . . Piercing Weapon . | . . . . . Special Melee Weapon . | . . . . . Unidentified Prototypes . | . . . . . Parts Lost 5 | . . . . 5 Power 1 | . . . . 1 Propulsion 2 | . . . . 2 Utility . | . . . . . Weapon 2 | . . . . 2 Highest Loss Streak 5 | . . . . 5 To Critical Strikes . | . . . . . Average Backups 4 | 1 2 4 6 8 Power . | . . . . . Propulsion . | . . . . . Utility . | . . 1 1 1 Weapon 3 | . 1 3 5 7 Tool/Special . | . . . . . Unused Backups 13 | . 2 . 2 9 Power 1 | . 1 . . . Propulsion . | . . . . . Utility 3 | . . . 1 2 Weapon 9 | . 1 . 1 7 Tool/Special . | . . . . . Average Slot Usage (%) 99 | . 99 100 100 100 Engine 14 | . 14 14 14 14 Treads 28 | . 28 28 28 28 Device 14 | . 14 14 14 14 Storage 14 | . 14 14 14 14 Ballistic Gun 27 | . 27 28 28 27 Peak Build Rating 8 | 7 7 7 8 8 Average Rating 7 | 4 6 7 7 7 On Entrance 5 | . 7 7 7 8 Avg Prop Armor Cover (%) . | . . . . . Naked Turns . | . . . . . Heaviest Build 29 | 14 29 29 29 29 Greatest Support 40 | 40 40 40 40 40 Greatest Overweight (x) 8 | . . . . 8 Average Overweight (x) . | . . . . . Largest Inventory Capacity 15 | 8 15 15 15 15 Average Capacity 13 | 6 9 15 15 15 Most Carried 11 | 4 4 6 7 11 Average Carried 5 | 1 2 4 6 8 Final Capacity 15 | 8 15 15 15 15 Final Carried 11 | 2 3 6 7 11 Class Distribution -------------------- 63% | Mutant 36% | Commander-Mutant Dominant Class ---------------- Mutant | -10/Materials Mutant | -10/Mines Commander-Mutant | -10/Exiles Commander-Mutant | -9/Mines Resources | -11 -10 -10 -10 -9 ----------- Run | Yrd Mat Min Exi Min Matter Collected 676 | 191 243 218 . 24 Remotely . | . . . . . Salvage Created 487 | 20 287 145 . 35 Parts 50 | 4 19 21 . 6 Haulers Intercepted 1 | . 1 . . . Recyclers Shooed 1 | . . 1 . . Parts Field Recycled . | . . . . . Retrieved Matter . | . . . . . Parts Self-Destructed . | . . . . . Prevented . | . . . . . Parts Restored . | . . . . . Kills | -11 -10 -10 -10 -9 ------- Run | Yrd Mat Min Exi Min Combat Hostiles Destroyed 16 | . 6 8 . 2 Guns 16 | . 6 8 . 2 Classes Destroyed 6 | 1 5 . . . Worker 1 | . 1 . . . Tunneler 2 | 1 . 1 . . Hauler 1 | . 1 . . . Recycler 1 | . 1 . . . Swarmer 13 | . 4 7 . 2 Grunt 3 | . 2 1 . . Best Kill Streak 5 | 1 5 3 . 2 Combat Bots Only 4 | . 4 3 . 2 Max Kills in Single Turn 2 | 1 1 2 . 1 Gunslinging 1 | . . 1 . . Exploded . | . . . . . Melee . | . . . . . Uniques/NPCs Destroyed . | . . . . . Combat | -11 -10 -10 -10 -9 -------- Run | Yrd Mat Min Exi Min Hostile Shots Fired 71 | . 32 24 . 15 Missed 26 | . 13 12 . 1 Hits 45 | . 19 12 . 14 Projectile 45 | . 19 12 . 14 AOE 7 | . . . . 7 Critical Strikes 2 | . 1 . . 1 Damage Taken 700 | . 180 118 . 402 Core 154 | . 34 23 . 97 Absorbed by Shields . | . . . . . Core Remaining (%) 100 | 100 . . . . Volleys Fired 55 | 1 23 24 . 7 Largest 2 | 2 2 2 . 2 Hottest 50 | 40 40 40 . 50 Shots Fired 110 | 2 46 48 . 14 Gun 109 | 2 46 48 . 13 Cannon . | . . . . . Launcher 1 | . . . . 1 Special . | . . . . . Kinetic 109 | 2 46 48 . 13 Thermal . | . . . . . Explosive 1 | . . . . 1 Electromagnetic . | . . . . . Robot Hit Streak 6 | 1 4 5 . 6 Robot Miss Streak 7 | . 7 3 . 1 Penetration Max . | . . . . . Secondary Targets 6 | . 2 2 . 2 Max Gunslinging Chain 1 | . 1 1 . 1 Shots Hit Robots 60 | 1 20 29 . 10 Core Hits 32 | 1 12 14 . 5 Critical Kills 1 | 1 . . . . Critical Parts Destroyed 1 | . . 1 . . Critical Strikes 2 | 1 . 1 . . Destroy 2 | 1 . 1 . . Melee Attacks . | . . . . . Impact . | . . . . . Slashing . | . . . . . Piercing . | . . . . . Sneak Attacks . | . . . . . Combat Hostiles . | . . . . . Follow-up Attacks . | . . . . . Damage Inflicted 671 | 14 213 304 . 140 Guns 636 | 14 213 296 . 113 Cannons . | . . . . . Explosions 16 | . . . . 16 Melee . | . . . . . Ramming 19 | . . 8 . 11 Kinetic 636 | 14 213 296 . 113 Thermal . | . . . . . Explosive 16 | . . . . 16 Electromagnetic . | . . . . . Impact . | . . . . . Slashing . | . . . . . Piercing . | . . . . . Highest Corruption . | . . . . . Average Corruption . | . . . . . Corruption Purged . | . . . . . Corruption Blocked . | . . . . . Overload Shots . | . . . . . Overflow Damage . | . . . . . Projectiles . | . . . . . Explosions . | . . . . . Melee . | . . . . . Knockbacks . | . . . . . Impact . | . . . . . Kinetic . | . . . . . Secondary . | . . . . . Self-Inflicted Damage . | . . . . . Shots . | . . . . . Rammed 4 | . . 1 . 3 Targets Rammed 4 | . . 1 . 3 Kicked . | . . . . . Crushed . | . . . . . Highest Temperature 27 | . 27 6 . . Average Temperature 12 | . 13 6 . . Received Heat Transfer 54 | . 42 12 . . Siege Activations . | . . . . . Martial Activations . | . . . . . Shielding Activations . | . . . . . Robots Disrupted . | . . . . . Combat Hostiles . | . . . . . Robots Corrupted . | . . . . . Combat Hostiles . | . . . . . Parts Fried . | . . . . . Impact Corruptions . | . . . . . Robots Melted . | . . . . . Combat Hostiles . | . . . . . Parts Melted . | . . . . . Heat Transferred . | . . . . . Parts Sabotaged . | . . . . . Parts Stolen . | . . . . . Parts Stripped . | . . . . . Power Chain Reactions . | . . . . . Alert | -11 -10 -10 -10 -9 ------- Run | Yrd Mat Min Exi Min Maximum Alert Level 1 | . 1 1 . . Low Security (%) 75 | 100 69 62 . 100 Level 1 24 | . 30 37 . . Level 2 . | . . . . . Level 3 . | . . . . . Level 4 . | . . . . . Level 5 . | . . . . . High Security . | . . . . . Max Security . | . . . . . Peak Influence 392 | 5 369 392 . 185 Initial 137 | . . 137 . . Average 140 | . 101 198 . 128 Influence Increases 1524 | 5 486 573 . 460 Destroy 0b10 Robot/C 820 | . 280 300 . 240 Destroy 0b10 Robot/NC 45 | 5 35 5 . . Destroy Leader 158 | . 58 60 . 40 Allied During Kill 398 | . 87 142 . 169 Disable Machine 15 | . . 15 . . Destroy Structure 58 | . 26 21 . 11 Lose Combat Pursuer 30 | . . 30 . . Influence Decreases 1504 | 5 133 572 354 440 Entered New Map 570 | . . 216 354 . Time Decay 714 | 5 123 356 . 230 Lost Part 80 | . 10 . . 70 Lost Ally 140 | . . . . 140 Squads Dispatched 1 | . 1 . . . Investigation . | . . . . . Extermination . | . . . . . Reinforcement 1 | . 1 . . . Assault . | . . . . . Garrison . | . . . . . Intercept . | . . . . . Searches Triggered . | . . . . . Construction Impeded . | . . . . . Haulers Reinforced . | . . . . . Active Scanning Responses . | . . . . . Cargo Convoy Interrupts . | . . . . . Stealth | -11 -10 -10 -10 -9 --------- Run | Yrd Mat Min Exi Min Distress Signals 1 | . 1 . . . Communications Jammed . | . . . . . Distress Signals . | . . . . . Times Spotted 46 | . 17 15 . 14 Peak Tracking Total 6 | . 6 5 . 4 Tactical Retreats 2 | . . 2 . . Traps | -11 -10 -10 -10 -9 ------- Run | Yrd Mat Min Exi Min Traps Triggered 1 | . 1 . . . Indirectly . | . . . . . Trap Hack Attempts . | . . . . . Triggered . | . . . . . Disarmed . | . . . . . Reprogrammed . | . . . . . Reused . | . . . . . Traps Extracted . | . . . . . Installed . | . . . . . Triggered . | . . . . . Machines | -11 -10 -10 -10 -9 ---------- Run | Yrd Mat Min Exi Min Machines Disabled 1 | . . 1 . . Max in Single Turn . | . . . . . Machines Repaired . | . . . . . Machines Dismantled . | . . . . . Machines Sabotaged . | . . . . . Overloaded Fab Kills . | . . . . . Hacking | -11 -10 -10 -10 -9 --------- Run | Yrd Mat Min Exi Min Machines Accessed . | . . . . . Terminals . | . . . . . Fabricators . | . . . . . Repair Stations . | . . . . . Recycling Units . | . . . . . Scanalyzers . | . . . . . Garrison Access . | . . . . . Total Hacks . | . . . . . Successful . | . . . . . Failed . | . . . . . Catastrophic . | . . . . . Database Lockouts . | . . . . . Manual . | . . . . . Terminals . | . . . . . Fabricators . | . . . . . Repair Stations . | . . . . . Recycling Units . | . . . . . Scanalyzers . | . . . . . Garrison Access . | . . . . . Terminal Hacks . | . . . . . Fabricator Hacks . | . . . . . Repair Station Hacks . | . . . . . Recycling Unit Hacks . | . . . . . Scanalyzer . | . . . . . Garrison Access Hacks . | . . . . . Unauthorized Hacks . | . . . . . Terminals . | . . . . . Fabricators . | . . . . . Repair Stations . | . . . . . Recycling Units . | . . . . . Scanalyzers . | . . . . . Garrison Access . | . . . . . Data Cores Recovered . | . . . . . Used . | . . . . . Hacking Detections . | . . . . . Full Trace Events . | . . . . . Feedback Events . | . . . . . Feedback Blocked . | . . . . . Robot Schematics Acquired . | . . . . . Robots Built . | . . . . . Authchips . | . . . . . Time . | . . . . . Total Robot Build Rating . | . . . . . Part Schematics Acquired . | . . . . . Parts Built . | . . . . . Authchips . | . . . . . Time . | . . . . . Total Part Build Rating . | . . . . . Part Studies Acquired . | . . . . . Parts Repaired . | . . . . . Time . | . . . . . Parts Recycled . | . . . . . Recycled Matter . | . . . . . Retrieved Matter . | . . . . . Retrieved Components . | . . . . . Parts Scanalyzed . | . . . . . Part Schematics Acquired . | . . . . . Parts Damaged . | . . . . . Bothacking | -11 -10 -10 -10 -9 ------------ Run | Yrd Mat Min Exi Min Used RIF Installer . | . . . . . Robots Hacked . | . . . . . Non-combat . | . . . . . Combat . | . . . . . Robot Hacks Applied . | . . . . . Relay Couplers Released . | . . . . . Fabnet Peak Effective % . | . . . . . Robots Rewired 5 | . . . 5 . Allies Hacked . | . . . . . Hacks Repelled . | . . . . . Allies | -11 -10 -10 -10 -9 -------- Run | Yrd Mat Min Exi Min Total Allies 11 | . 1 5 5 . Largest Group 9 | . 1 6 9 9 Highest-Rated Group 164 | . 58 141 164 164 Highest-Rated Ally 60 | . 58 58 58 60 Total Orders . | . . . . . Ally Attacks 84 | . 17 23 . 44 Total Damage 1589 | . 679 308 . 602 Kills 29 | . 12 7 . 10 Allies Corrupted . | . . . . . Allies Melted . | . . . . . Intel | -11 -10 -10 -10 -9 ------- Run | Yrd Mat Min Exi Min Active Infowar (turns) 2551 | 9 687 800 571 484 Seismic 2551 | 9 687 800 571 484 Robot Analysis Total . | . . . . . Derelict Logs Recovered 3 | . . 2 . 1 Drone Launches . | . . . . . Drone Recoveries . | . . . . . Exploration | -11 -10 -10 -10 -9 ------------- Run | Yrd Mat Min Exi Min Turns Passed 2637 | 95 687 800 571 484 Spaces Moved 1367 | 53 327 425 313 249 Core 8 | 7 . . . 1 Treads 1359 | 46 327 425 313 248 Legs . | . . . . . Wheels . | . . . . . Hover . | . . . . . Flight . | . . . . . Fastest Speed 50 | 50 160 160 160 160 Average Speed 159 | 145 160 160 160 161 Slowest Speed 450 | 160 160 160 160 450 Overloaded Moves . | . . . . . Propulsion Burnouts . | . . . . . Robots Hopped . | . . . . . Potential Cave-ins . | . . . . . Cave-ins Triggered . | . . . . . Exploration Rate (%) 52 | 4 47 78 75 60 Regions Visited 4 Branch Regions 3 Pre-discovered Areas 1 | . . . . 1 Known Exits Taken . | . . . . . Unknown Exits Taken 4 | 1 1 1 1 . Scrap Searched 2 | . . 1 . 1 Spaces Dug . | . . . . . Terrain Destroyed 11 | . . . . 11 Melee . | . . . . . Projectile . | . . . . . AOE 11 | . . . . 11 Terrain Rammed . | . . . . . Walls Destroyed . | . . . . . Machines Disabled . | . . . . . Actions | -11 -10 -10 -10 -9 --------- Run | Yrd Mat Min Exi Min Total 1721 | 69 451 501 384 316 Wait 202 | . 88 49 13 52 Move 1363 | 52 326 424 312 249 Hop . | . . . . . Pick Up 26 | 9 7 3 3 4 Fast Attach . | . . . . . Attach 10 | 7 3 . . . Detach . | . . . . . Swap 2 | . 1 . . 1 Drop 5 | . 3 . 2 . Fire 55 | 1 23 24 . 7 Melee . | . . . . . Ram . | . . . . . Kick . | . . . . . Crush 4 | . . 1 . 3 Escape Stasis . | . . . . . Rewire 54 | . . . 54 . Trap . | . . . . . Miscellaneous . | . . . . . Route ------- -11/Scrapyard -10/Materials -10/Mines (discovered 3 exits: [*Mat x2] / [*Exi]) -10/Exiles -9/Mines History --------- Turn | Location | Event 3 | -11/Scrapyard | Discovered new exit (range 16) 96 | -11/Scrapyard | Entered Materials 302 | -10/Materials | Build established: Mutant 325 | -10/Materials | Discovered new exit (range 10) 783 | -10/Materials | Entered Mines 1000 | -10/Mines | Discovered new exit (range 11) 1070 | -10/Mines | Learned Materials terminal intel 1350 | -10/Mines | Assisted by bots powering up and referring to "LRC-V3" 1414 | -10/Mines | Learned 4 Materials zone layouts 1517 | -10/Mines | Discovered new exit (range 15) 1561 | -10/Mines | Deemed a non-threat by the Exiles lab entrance 1561 | -10/Mines | Discovered new exit (range 5) 1583 | -10/Mines | Entered Exiles 1583 | -10/Exiles | Found Exiles lab destroyed 1583 | -10/Exiles | Accompanied by 5 allies 1613 | -10/Exiles | Led the pair of lost Derelicts to a safe place 1979 | -10/Exiles | Build established: Commander-Mutant 2124 | -10/Exiles | Discovered new exit (range 14) 2154 | -10/Exiles | Entered Mines 2154 | -9/Mines | Accompanied by 8 allies 2167 | -9/Mines | Learned location of Zion (-6) 2396 | -9/Mines | YI-UF0 nonchalantly dropped a Grenade Launcher on the ground 2623 | -9/Mines | Assembled infested the area 2628 | -9/Mines | Assisted by a Guerilla fighting off Assembled 2632 | -9/Mines | Core integrity fell below 50% 2633 | -9/Mines | Core integrity fell below 20% 2638 | -9/Mines | Destroyed by D-53 Grenadier with Mini Grenade Launcher Last Messages --------------- 02628_ D-53 Grenadier unfolds itself. 02630_ Lgt. Treads destroyed. 02630_ Mercenary 1a destroyed. 02631_ Penetrated by Slug. 02631_ Lgt. Treads destroyed. 02631_ Destroyed Lgt. Treads. 02631_ WG-82C(h): "I'll hold them off! Go on ahead or try to find another way!" 02631_ HV Slug penetrates D-53 Grenadier. 02631_ D-53 Grenadier suffers critical hit (Destroy). 02632_ Ion Engine destroyed. 02633_ Trooper 1b destroyed. 02633_ HV Slug penetrates D-53 Grenadier. 02633_ D-53 Grenadier destroyed. 02634_ Slug penetrates D-53 Grenadier. 02634_ WG-82C(h) destroyed. 02636_ Grenade Launcher destroyed. 02636_ Assault Rifle destroyed. 02636_ Mercenary 1c destroyed. Map ----- +----------------------------------------------------+ | | | | | | | | | | | | | | | | | | | ?????????????????????????????????????????????????? | | ?????????????????????????????????????????????????? | | ?????????????????????????????????????????????????? | | ?????????????????????????????????????????????????? | | ????????????????????? ???????????????????????????? | | ??????????????????????"??????????????????????????? | | ?????????????????????? ?????????????##???????????? | | ?????????????????????? ????????????# ###?????????? | | ??????????????????????# ??????????## #?????????? | | ??????????????????????# ??????????# ??????????? | | ??????????????????????# ###???###### ###????????? | | ????????????????????### # ###?# #????????? | | ????????????????????# ### ########## | | ???????????# ??????## ## """ """* % | | ??????????# ## ## """ ""!%########## | | ???????????# % d =% """ """%T#???????? | | ?????????? %! @ @ h ==##???????? | | ????????????# ]# ## #????????? | | ????????????###????# ############????????? | | ????????????????? # #???????????????????? | | ???????????????#$########?####???????????????????? | | ?????????????????????????????????????????????????? | | ?????????????????????????????????????????????????? | | ?????????????????????????????????????????????????? | | ?????????????????????????????????????????????????? | | ?????????????????????????????????????????????????? | | ?????????????????????????????????????????????????? | | ?????????????????????????????????????????????????? | | ?????????????????????????????????????????????????? | | ?????????????????????????????????????????????????? | | ?????????????????????????????????????????????????? | | ?????????????????????????????????????????????????? | | ?????????????????????????????????????????????????? | | ?????????????????????????????????????????????????? | | ?????????????????????????????????????????????????? | | ?????????????????????????????????????????????????? | | ?????????????????????????????????????????????????? | | ?????????????????????????????????????????????????? | | ?????????????????????????????????????????????????? | | ?????????????????????????????????????????????????? | | ??????????####??####?????????????????????????????? | +----------------------------------------------------+ Best States ------------- Heat Dissipation 25 Energy Generation 10 Energy Capacity 250 Matter Stores 300 Matter Capacity 300 Sight Range 16 Terrain Scan Density 10 Evasion (%) 40 Recoil Reduction 2 Item Schematics ----------------- None Robot Schematics ------------------ None Fabricated ------------ Nothing Repaired ---------- Nothing Studied --------- None Alien Tech Used ----------------- None Achievements -------------- None Challenges ------------ None Player 2 | -11 -10 -10 -10 -9 ---------- Run | Yrd Mat Min Exi Min Slots Evolved . | . . . . . Power . | . . . . . Propulsion . | . . . . . Utility . | . . . . . Weapon . | . . . . . Parts Attached 23 | . 13 7 1 2 Parts Lost 3 | . 1 . . 2 Damage Taken 484 | . 85 90 . 309 Core 100 | . 19 18 . 63 Player 2/Cogmind (%) 39 | . 35 43 . 39 Absorbed by Shields . | . . . . . Damage Inflicted 1020 | . 679 260 . 81 Player 2/Cogmind (%) 60 | . 76 46 . 36 Combat Hostiles Destroyed 14 | . 8 5 . 1 Player 2/Cogmind (%) 46 | . 57 38 . 33 Game ------ Seed SpacefoldBattleRail Manual? 0 Play Time 00:15:58 Cumulative 78.6 hours Start 2026.09.21 @ 19:02:49 End 2026.09.21 @ 19:18:32 Sessions 1 Manual Loads 0 Difficulty Rogue Special Mode AFD2020/Player2 Game No. 132 Rogue 132 Adventurer 0 Explorer 0 Win Type - Total 1 Types 1/0/0/0/0/0/0/0/0/0 Lore% 37 Gallery% 40 Achievement% 36 Wizard Run 0 Options --------- Layout 2 ASCII 0 Keyboard 0 Movement Mouse Keybinds 0 Fullscreen 1 Font 48/Smallcaps Map View 50x44 Zoom Use 0% Tactical HUD 1 Map Filters NONE Filters NONE Steam 1 RUN: e3d4f7b8-6313-4713-b218-beb2f278d4e4